fUSD/lending_fUSD_20240519
["ID","MTS","AMOUNT","RATE_DAILY","PERIOD"]
[327525582,1716159043119,-257.24951624,0.0001298,2]
[327525583,1716159043134,-1552.16653,0.0001298,2]
[327525592,1716159045656,-2357.86048009,0.00012979,2]
[327525593,1716159045665,-467.18610619,0.0001298,2]
[327525594,1716159045799,-410.92105821,0.0001298,2]
[327525595,1716159045811,-9323.77378296,0.0001298,2]
[327525596,1716159045822,-531.056,0.0001298,2]
[327525597,1716159045833,-117525.28510186,0.0001298,2]
[327525598,1716159045845,-672.22403397,0.0001298,2]
[327525599,1716159045935,-897.58999998,0.0001298,2]
[327525600,1716159045946,-11339.37648721,0.0001298,2]
[327525601,1716159045958,-32439.39449639,0.0001298,2]
[327525602,1716159045968,-1832.78826,0.0001298,2]
[327525603,1716159045979,-28776.17808538,0.0001298,2]
[327525604,1716159046062,-45412.44993162,0.0001298,2]
[327525605,1716159046072,-57606.94790609,0.0001298,2]
[327525613,1716159102689,537.17,0.0001138,2]
[327525614,1716159127545,1833.26,0.00024329,30]
[327525615,1716159148571,155.0,0.00011698,2]
[327525616,1716159242458,1663.1,0.0001238,2]
[327525617,1716159280890,688.79096572,0.00012428,2]
[327525618,1716159325033,312.06,0.00012255,2]
[327525619,1716159357219,619.64,0.00012248,2]
[327525620,1716159360381,250.0,0.00012248,2]
[327525621,1716159413295,250.0,0.00012288,2]
[327525622,1716159445627,577.54,0.00012249,2]
[327525623,1716159462251,264.82133589,0.00011091,2]
[327525624,1716159552961,12278.56,0.00012171,2]
[327525625,1716159580708,1088.10510429,0.000125,2]
[327525626,1716159596737,510.31,0.00010207,2]
[327525627,1716159632194,277.77,0.00012086,2]
[327525628,1716159723194,1680.48,0.00024329,30]
[327525629,1716159775147,23890.0,0.00012118,2]
[327525630,1716159799816,1058.47,0.00012184,2]
[327525631,1716159813038,504.28,0.00012229,2]
[327525632,1716159889035,250.0,0.00012268,2]
[327525633,1716160064102,484.79,0.00010293,2]
[327525634,1716160181351,200.0,9.115e-05,2]
[327525635,1716160199805,1000.0,0.0001245,2]
[327525636,1716160207066,1500.0,0.0001245,2]
[327525648,1716160231970,-803.61483511,0.00012499,2]
[327525649,1716160231980,-2429.47489571,0.000125,2]
[327525650,1716160231991,-484.79,0.00012557,2]
[327525651,1716160232001,-893.70547372,0.000127,2]
[327525652,1716160232013,-128.29452628,0.000127,2]
[327525653,1716160232023,-2750.95046,0.0001285,2]
[327525654,1716160232033,-175.3,0.0001286,2]
[327525655,1716160232048,-150.0,0.00012879,2]
[327525656,1716160232058,-3500.0144,0.0001288,2]
[327525657,1716160232067,-1000.0,0.00012895,2]
[327525658,1716160232076,-499.99,0.00012895,2]
[327525659,1716160232086,-1163.85,0.00012895,2]
[327525660,1716160232096,-1000.0,0.00012896,2]
[327525661,1716160232106,-200.0,0.00012896,2]
[327525662,1716160232116,-716.84287413,0.00012896,2]
[327525663,1716160232130,-283.15712587,0.00012896,2]
[327525664,1716160232141,-1000.0,0.00012896,2]
[327525665,1716160232151,-500.0,0.00012896,2]
[327525666,1716160232160,-133.64526356,0.000129,2]
[327525667,1716160232173,-239.03603644,0.000129,2]
[327525668,1716160232182,-939.42348112,0.000129,2]
[327525669,1716160232195,-1133.16129937,0.000129,2]
[327525670,1716160232208,-557.9962573,0.000129,2]
[327525671,1716160232218,-1717.49030656,0.000129,2]
[327525672,1716160232230,-2253.3672239,0.000129,2]
[327525673,1716160232279,-2753.37676954,0.000129,2]
[327525674,1716160232289,-169.81216375,0.000129,2]
[327525675,1716160232298,-172.58003911,0.000129,2]
[327525676,1716160232308,-162.16161132,0.000129,2]
[327525677,1716160232317,-383.72460685,0.000129,2]
[327525678,1716160232326,-384.80972136,0.000129,2]
[327525679,1716160232336,-155.0,0.00012979,2]
[327525680,1716160232347,-15700.72394503,0.0001298,2]
[327525681,1716160232358,-35508.22619812,0.0001298,2]
[327525682,1716160232370,-32551.75292158,0.0001298,2]
[327525683,1716160232379,-1185.42270375,0.0001299,2]
[327525684,1716160232390,-8829.4836012,0.00012996,2]
[327525685,1716160232400,-827.8608865,0.00012996,2]
[327525686,1716160232409,-3545.5332715,0.00012996,2]
[327525687,1716160232418,-901.5971785,0.00012996,2]
[327525688,1716160232427,-358.97114323,0.00012996,2]
[327525689,1716160232451,-188.13133257,0.00012996,2]
[327525690,1716160232462,-21110.9082968,0.00012996,2]
[327525691,1716160232472,-243.18749239,0.00012998,2]
[327525692,1716160232482,-410.10769959,0.00012998,2]
[327525693,1716160232492,-202.1932044,0.00012998,2]
[327525694,1716160232501,-355.81530773,0.00012998,2]
[327525695,1716160232510,-155.0,0.00012998,2]
[327525696,1716160232520,-3863.97202559,0.00012998,2]
[327525697,1716160232530,-32464.04887812,0.00012998,2]
[327525698,1716160232539,-319.73872803,0.00012998,2]
[327525699,1716160232549,-177.68872852,0.00012998,2]
[327525700,1716160232558,-343.65261696,0.00012998,2]
[327525701,1716160232568,-178.94187128,0.00012998,2]
[327525702,1716160232577,-164.39342756,0.00012998,2]
[327525703,1716160232667,-1686.04842948,0.00012998,2]
[327525704,1716160232692,-535.58310182,0.00012998,2]
[327525705,1716160232703,-1519.88124633,0.00012998,2]
[327525706,1716160232713,-892.95845559,0.00012998,2]
[327525707,1716160232722,-572.62909829,0.00012999,7]
[327525708,1716160232731,-265.82545038,0.00012999,2]
[327525709,1716160232742,-235855.92616855,0.00013,2]
[327525710,1716160232755,-578.5596183,0.00013,2]
[327525711,1716160234421,1540.44,0.00024329,30]
[327525712,1716160237972,-1250.0,0.00013,2]
[327525716,1716160238116,-8416.13937241,0.00013,2]
[327525718,1716160240168,-740.83310956,0.00013,2]
[327525719,1716160240307,-658.090015,0.00013,2]
[327525720,1716160240445,-237116.87394025,0.00013,2]
[327525721,1716160240456,-446.04074992,0.00013,2]
[327525722,1716160240468,-1371.22456581,0.00013,2]
[327525723,1716160240479,-2332.581,0.00013,2]
[327525724,1716160240577,-2794.20608598,0.00013,2]
[327525725,1716160240588,-947.30669165,0.00013,2]
[327525726,1716160240600,-1553.49814854,0.00013,2]
[327525727,1716160243110,-2985.87488749,0.00013,2]
[327525731,1716160243247,-538303.8659869,0.00013,2]
[327525732,1716160243258,-6790.78450001,0.00013,2]
[327525733,1716160243270,-417.95220767,0.00013,2]
[327525734,1716160243384,-15698.5786229,0.00013,2]
[327525735,1716160243396,-412.74691942,0.00013,2]
[327525736,1716160243407,-1548.05000001,0.00013,2]
[327525737,1716160243420,-3317.0,0.00013,2]
[327525739,1716160245920,-803.61483511,0.00012999,2]
[327525741,1716160245930,-2752.08890936,0.00013,2]
[327525743,1716160245941,-1898.99689921,0.00013,2]
[327525747,1716160246070,-784.50318454,0.00013,2]
[327525748,1716160246081,-2008.00587715,0.00013,2]
[327525749,1716160246094,-162923.74588913,0.00013,2]
[327525750,1716160246105,-1062.17,0.00013,2]
[327525751,1716160246117,-574.42494592,0.00013,2]
[327525752,1716160246218,-7496.55257059,0.00013,2]
[327525753,1716160246231,-16869.73934652,0.00013,2]
[327525754,1716160246242,-5812.9,0.00013,2]
[327525755,1716160246254,-796.212,0.00013,2]
[327525756,1716160246265,-28333.35461965,0.00013,2]
[327525757,1716160246276,-872.7624811,0.00013,2]
[327525758,1716160246287,-2007.98,0.00013,2]
[327525759,1716160246298,-669.896727,0.00013,2]
[327525760,1716160246309,-500.0,0.00013,2]
[327525761,1716160246320,-1635.12992052,0.00013,2]
[327525762,1716160246373,-3424.309831,0.00013,2]
[327525763,1716160246384,-1825.79,0.00013,2]
[327525764,1716160246395,-6132.54188406,0.00013,2]
[327525765,1716160258886,362.1187396,0.00010293,2]
[327525768,1716160424584,165.73,0.00012343,2]
[327525769,1716160464380,2603.99957143,0.00012,2]
[327525771,1716160497546,644.92,0.00012415,2]
[327525772,1716160499027,644.92,0.00012449,2]
[327525773,1716160603895,444.23,9.981e-05,2]
[327525774,1716160604087,444.23,0.00012245,2]
[327525775,1716160611938,200.0,0.00012184,2]
[327525776,1716160679028,250.0,0.00011906,2]
[327525779,1716160739580,1412.07,0.00024329,30]
[327525780,1716160748473,19728.00658117,0.00011906,2]
[327525781,1716160762476,3821.07045448,0.00011906,2]
[327525782,1716160783283,362.1187396,0.00011906,2]
[327525783,1716160802935,150.0,0.00011906,2]
[327525784,1716160803134,150.0,0.00011906,2]
[327525785,1716160805285,361.91584248,0.00011906,2]
[327525786,1716160813856,645.18,0.00011883,2]
[327525787,1716160819996,1560.32,0.00011887,2]
[327525788,1716160845933,3779.57,0.00011887,2]
[327525789,1716160875139,250.0,0.00011887,2]
[327525790,1716160910002,249.64,0.00011894,2]
[327525791,1716160926535,403.43,0.0001188,2]
[327525792,1716161065993,580.42,0.00012019,2]
[327525793,1716161066199,580.42,0.00012052,2]
[327525794,1716161066420,580.42,0.00012085,2]
[327525795,1716161066686,580.42,0.00012118,2]
[327525796,1716161066870,580.42,0.00012151,2]
[327525797,1716161067098,580.42,0.00012184,2]
[327525798,1716161067301,580.42,0.00012217,2]
[327525799,1716161067515,580.42,0.0001225,2]
[327525800,1716161067991,580.42,0.00012283,2]
[327525801,1716161068097,580.42,0.00012316,2]
[327525802,1716161068331,580.42,0.00012349,2]
[327525803,1716161068560,580.42,0.00012382,2]
[327525804,1716161068796,580.42,0.00012415,2]
[327525805,1716161069026,580.42,0.00012448,2]
[327525806,1716161083788,399.8,9.976e-05,2]
[327525807,1716161083977,399.8,0.00012239,2]
[327525913,1716161304039,1294.39,0.00024329,30]
[327525914,1716161335229,1039.88,0.00011884,2]
[327525915,1716161394671,250.0,0.00011885,2]
[327525941,1716161432307,-302.60236657,0.00012479,2]
[327525942,1716161432317,-2362.29532977,0.0001248,2]
[327525943,1716161432329,-580.42,0.00012481,2]
[327525944,1716161432340,-252.38036724,0.000125,2]
[327525945,1716161432349,-580.42,0.00012514,2]
[327525946,1716161432359,-580.42,0.00012547,2]
[327525947,1716161432369,-580.42,0.0001258,2]
[327525948,1716161432379,-580.42,0.00012613,2]
[327525949,1716161432389,-580.42,0.00012646,2]
[327525950,1716161432398,-191.53,0.00012671,2]
[327525951,1716161432407,-499.99,0.00012671,2]
[327525952,1716161432417,-1564.60657979,0.00012773,2]
[327525953,1716161432426,-150.0,0.00012797,2]
[327525954,1716161432436,-256.864,0.00012798,2]
[327525955,1716161432445,-7500.0,0.00012798,2]
[327525956,1716161432456,-1291.3552,0.000128,2]
[327525957,1716161432465,-460.75043116,0.000128,2]
[327525958,1716161432476,-460.75043114,0.00012825,2]
[327525959,1716161432486,-460.75043114,0.0001285,2]
[327525960,1716161432496,-268.83939743,0.00012869,2]
[327525961,1716161432506,-2500.0,0.0001287,2]
[327525962,1716161432516,-460.75043114,0.00012875,2]
[327525963,1716161432525,-16651.93636045,0.00012889,2]
[327525964,1716161432536,-16651.93636041,0.00012889,2]
[327525965,1716161432546,-16651.93636041,0.00012889,2]
[327525966,1716161432559,-16651.93636041,0.00012889,2]
[327525967,1716161432570,-16651.93636041,0.00012889,2]
[327525968,1716161432582,-16651.93636041,0.00012889,2]
[327525969,1716161432592,-16651.93636041,0.00012889,2]
[327525970,1716161432604,-12075.72266483,0.00012889,2]
[327525971,1716161432616,-346.22786443,0.00012889,2]
[327525972,1716161432653,-1418.93606484,0.00012889,2]
[327525974,1716161432665,-2811.04976631,0.00012889,2]
[327525976,1716161432675,-3826.49883369,0.00012889,2]
[327525978,1716161432838,-12825.43752672,0.00012889,2]
[327525979,1716161432850,-500.0,0.00012895,2]
[327525980,1716161432861,-2885.5228,0.00012896,2]
[327525981,1716161432872,-500.0,0.00012896,2]
[327525982,1716161432883,-1312.29,0.00012897,2]
[327525983,1716161432894,-39152.39210486,0.00012898,2]
[327525984,1716161432907,-5002.62750254,0.00012898,2]
[327525985,1716161432932,-835.524,0.00012898,2]
[327525986,1716161432943,-11237.35336303,0.00012898,2]
[327525987,1716161432952,-56227.89697037,0.00012898,2]
[327525988,1716161432962,-56227.89697037,0.00012898,2]
[327525989,1716161432972,-56227.89697037,0.00012898,2]
[327525990,1716161432981,-56227.89697037,0.00012898,2]
[327525991,1716161432990,-56227.89697037,0.00012898,2]
[327525992,1716161432999,-56227.89697037,0.00012898,2]
[327525993,1716161433008,-28183.45898522,0.00012898,2]
[327525994,1716161433020,-13748.32483707,0.00012898,2]
[327525995,1716161433032,-654.28007,0.00012898,2]
[327525996,1716161433043,-1084.00000008,0.00012898,2]
[327526003,1716161438333,-2955.38776401,0.00012898,2]
[327526005,1716161438511,-2323.00059162,0.00012898,2]
[327526006,1716161438535,-7279.44472237,0.00012898,2]
[327526007,1716161438546,-46045.4160129,0.00012898,2]
[327526008,1716161438563,-602.584341,0.00012898,2]
[327526009,1716161439204,-1069.36870737,0.00012898,2]
[327526010,1716161440526,-8510.5279091,0.00012898,2]
[327526011,1716161440536,-151.0,0.00012898,2]
[327526012,1716161440548,-151.0,0.00012898,2]
[327526013,1716161440561,-151.0,0.00012898,2]
[327526014,1716161440571,-151.0,0.00012898,2]
[327526015,1716161440581,-274.401703,0.00012898,2]
[327526016,1716161440591,-151.0,0.00012898,2]
[327526017,1716161440603,-358.367441,0.00012898,2]
[327526018,1716161440613,-358.367441,0.00012898,2]
[327526019,1716161440622,-151.0,0.00012898,2]
[327526020,1716161440634,-151.0,0.00012898,2]
[327526021,1716161440643,-151.0,0.00012898,2]
[327526022,1716161440655,-286.857423,0.00012898,2]
[327526023,1716161440664,-151.0,0.00012898,2]
[327526024,1716161440674,-151.0,0.00012898,2]
[327526025,1716161440683,-203.695478,0.00012898,2]
[327526026,1716161440693,-151.0,0.00012898,2]
[327526027,1716161440703,-151.0,0.00012898,2]
[327526028,1716161440712,-203.695478,0.00012898,2]
[327526029,1716161440722,-151.0,0.00012898,2]
[327526030,1716161440732,-151.45,0.00012898,2]
[327526031,1716161440743,-596.57,0.00012899,2]
[327526032,1716161440752,-2227.0,0.000129,2]
[327526033,1716161440761,-494.0898,0.000129,2]
[327526034,1716161440771,-78549.8897,0.000129,2]
[327526035,1716161440779,-2251.8225,0.000129,2]
[327526036,1716161440789,-10349.8897,0.000129,2]
[327526037,1716161440799,-1706.5889,0.000129,2]
[327526038,1716161440809,-223.03112784,0.000129,2]
[327526039,1716161440818,-152.39850021,0.000129,2]
[327526040,1716161440828,-56227.89697037,0.000129,2]
[327526041,1716161440838,-151.0,0.000129,2]
[327526042,1716161440847,-151.0,0.000129,2]
[327526043,1716161440857,-151.0,0.000129,2]
[327526044,1716161440867,-153.8363,0.000129,2]
[327526045,1716161440878,-358.367441,0.000129,2]
[327526046,1716161440888,-358.367441,0.000129,2]
[327526047,1716161440897,-220.695828,0.000129,2]
[327526048,1716161440907,-151.0,0.000129,2]
[327526049,1716161440916,-220.695828,0.000129,2]
[327526050,1716161440926,-151.0,0.000129,2]
[327526051,1716161440935,-151.0,0.000129,2]
[327526052,1716161440945,-460.75043114,0.000129,2]
[327526053,1716161440955,-151.0,0.000129,2]
[327526054,1716161440965,-151.0,0.000129,2]
[327526055,1716161440974,-16651.93636041,0.000129,2]
[327526056,1716161440984,-2540.946783,0.000129,2]
[327526057,1716161440994,-2540.946783,0.000129,2]
[327526058,1716161441003,-151.0,0.000129,2]
[327526059,1716161441013,-151.0,0.000129,2]
[327526060,1716161441023,-151.0,0.000129,2]
[327526061,1716161441032,-151.0,0.000129,2]
[327526062,1716161441043,-151.0,0.000129,2]
[327526063,1716161441053,-586.80644178,0.000129,2]
[327526064,1716161441063,-182.077746,0.000129,2]
[327526065,1716161441072,-151.0,0.000129,2]
[327526066,1716161441082,-151.0,0.000129,2]
[327526067,1716161441091,-182.077746,0.000129,2]
[327526068,1716161441101,-151.0,0.000129,2]
[327526069,1716161441110,-151.0,0.000129,2]
[327526070,1716161441120,-151.0,0.000129,2]
[327526071,1716161441130,-151.0,0.000129,2]
[327526072,1716161441139,-151.0,0.000129,2]
[327526073,1716161441149,-203.695478,0.000129,2]
[327526074,1716161441160,-151.0,0.000129,2]
[327526075,1716161441170,-151.0,0.000129,2]
[327526076,1716161441179,-203.695478,0.000129,2]
[327526077,1716161441189,-338.25048868,0.000129,2]
[327526078,1716161441199,-500.0,0.00012935,2]
[327526079,1716161441208,-500.0,0.00012935,2]
[327526080,1716161441217,-500.0,0.00012935,2]
[327526081,1716161441226,-500.0,0.00012935,2]
[327526082,1716161441236,-560.9012,0.00012935,2]
[327526083,1716161441245,-1000.0,0.00012935,2]
[327526084,1716161441255,-1000.0,0.00012935,2]
[327526085,1716161441264,-1000.0,0.00012935,2]
[327526086,1716161441273,-1000.0,0.00012935,2]
[327526087,1716161441282,-1000.0,0.00012935,2]
[327526088,1716161441292,-1000.0,0.00012935,2]
[327526089,1716161441301,-1000.0,0.00012935,2]
[327526090,1716161441311,-1000.0,0.00012935,2]
[327526091,1716161441320,-1000.0,0.00012935,2]
[327526092,1716161441329,-1096.6496,0.00012935,2]
[327526093,1716161441339,-3578.90368179,0.00012986,2]
[327526094,1716161441348,-185.76539648,0.0001299,2]
[327526095,1716161441358,-157.052008,0.00012996,2]
[327526096,1716161441367,-157.052008,0.00012996,2]
[327526097,1716161441377,-151.0,0.00012996,2]
[327526098,1716161441387,-33024.4139842,0.00012996,2]
[327526099,1716161441396,-273.540673,0.00012996,2]
[327526100,1716161441405,-151.0,0.00012996,2]
[327526101,1716161441415,-358.367441,0.00012996,2]
[327526102,1716161441424,-358.367441,0.00012996,2]
[327526103,1716161441434,-220.695828,0.00012996,2]
[327526104,1716161441443,-220.695828,0.00012996,2]
[327526105,1716161441453,-151.0,0.00012996,2]
[327526106,1716161441463,-151.0,0.00012996,2]
[327526107,1716161441472,-151.0,0.00012996,2]
[327526108,1716161441482,-2540.946783,0.00012996,2]
[327526109,1716161441491,-893.19070899,0.00012996,2]
[327526110,1716161441504,-1647.75607401,0.00012996,2]
[327526111,1716161441514,-151.0,0.00012996,2]
[327526112,1716161441523,-151.0,0.00012996,2]
[327526113,1716161441533,-269.093192,0.00012996,2]
[327526114,1716161441543,-151.0,0.00012996,2]
[327526115,1716161441554,-182.077746,0.00012996,2]
[327526116,1716161441567,-151.0,0.00012996,2]
[327526117,1716161441576,-151.0,0.00012996,2]
[327526118,1716161441586,-182.077746,0.00012996,2]
[327526119,1716161441595,-151.0,0.00012996,2]
[327526120,1716161441606,-151.0,0.00012996,2]
[327526121,1716161441615,-151.0,0.00012996,2]
[327526122,1716161441625,-151.0,0.00012996,2]
[327526123,1716161441636,-203.695478,0.00012996,2]
[327526124,1716161441645,-151.0,0.00012996,2]
[327526125,1716161441655,-211.091689,0.00012996,2]
[327526126,1716161441664,-203.695478,0.00012996,2]
[327526127,1716161441674,-157.052008,0.00012997,2]
[327526128,1716161441683,-157.052008,0.00012997,2]
[327526129,1716161441693,-170.412667,0.00012998,2]
[327526130,1716161441702,-355.91068806,0.00012998,2]
[327526131,1716161441712,-207.06147927,0.00012998,2]
[327526132,1716161441721,-155.65252056,0.00012998,2]
[327526133,1716161441731,-687.96672505,0.00012998,2]
[327526134,1716161441741,-298.31658624,0.00012998,2]
[327526135,1716161441751,-534.28456702,0.00012998,2]
[327526136,1716161441760,-803.13245728,0.00012998,2]
[327526137,1716161441770,-155.0,0.00012998,2]
[327526138,1716161441779,-410.10769959,0.00012998,2]
[327526139,1716161441788,-782.5278252,0.00012998,2]
[327526140,1716161441799,-1212.93169381,0.00012998,2]
[327526141,1716161441808,-317.50955943,0.00012998,2]
[327526142,1716161441817,-227.49697387,0.00012998,2]
[327526143,1716161441827,-157.052008,0.00012998,2]
[327526144,1716161441837,-157.052008,0.00012998,2]
[327526145,1716161441846,-1385.64856306,0.00012998,2]
[327526146,1716161441855,-2221.6315313,0.00012999,2]
[327526147,1716161441864,-5561.88042638,0.00012999,2]
[327526148,1716161441874,-155.0,0.00012999,2]
[327526149,1716161441883,-3602.13327045,0.00012999,2]
[327526150,1716161441892,-1069.36870737,0.00012999,3]
[327526151,1716161441902,-1298433.44313914,0.00013,2]
[327526152,1716161441911,-14232.20314458,0.00013,2]
[327526153,1716161441923,-11000.0,0.00013,2]
[327526154,1716161441934,-3684.04912018,0.00013,2]
[327526155,1716161441963,-714531.94840909,0.00013,2]
[327526157,1716161443277,-4395.75536144,0.00013,2]
[327526158,1716161443289,-13534.55785421,0.00013,2]
[327526159,1716161443301,-600.0,0.00013,2]
[327526160,1716161443312,-683.53714887,0.00013,2]
[327526161,1716161443324,-2489.84600004,0.00013,2]
[327526163,1716161443335,-1300.0,0.00013,2]
[327526167,1716161443403,-975.50000002,0.00013,2]
[327526168,1716161443524,-23438.8233895,0.00013,2]
[327526169,1716161443538,-1103.29747573,0.00013,2]
[327526170,1716161443551,-1356.30670095,0.00013,2]
[327526172,1716161443665,-19118.65864243,0.00013,2]
[327526173,1716161443677,-1356.52614116,0.00013,2]
[327526174,1716161443689,-111618.7881495,0.00013,2]
[327526175,1716161443700,-855.62630079,0.00013,2]
[327526176,1716161443711,-352.72799642,0.00013,2]
[327526177,1716161443723,-616.70421236,0.00013,2]
[327526178,1716161443734,-4203.50300215,0.00013,2]
[327526179,1716161443775,-364.18885378,0.00013,2]
[327526180,1716161443786,-2858.1659423,0.00013,2]
[327526181,1716161443798,-5607.57055296,0.00013,2]
[327526182,1716161443809,-773.51808747,0.00013,2]
[327526183,1716161443820,-2248.24107835,0.00013,2]
[327526184,1716161443832,-3454.38078348,0.00013,2]
[327526185,1716161443843,-630.87041203,0.00013,2]
[327526186,1716161443854,-171884.94668286,0.00013,2]
[327526187,1716161443865,-1458.78306831,0.00013,2]
[327526188,1716161443877,-1973.41752902,0.00013,2]
[327526189,1716161443888,-451.21276238,0.00013,2]
[327526258,1716161446714,-181.657576,0.00012898,2]
[327526260,1716161446724,-282.703424,0.00013,2]
[327526262,1716161446735,-620.53980725,0.00013,2]
[327526265,1716161446756,-339.85302779,0.00013,2]
[327526267,1716161446767,-530.256,0.00013,2]
[327526269,1716161446800,-3846.33104637,0.00013,2]
[327526270,1716161457523,7341.05580611,0.00011884,2]
[327526271,1716161593734,367.76,0.00010459,2]
[327526272,1716161611247,165.54,0.00012152,2]
[327526274,1716161705880,250.0,0.00012116,2]
[327526275,1716161745308,165424.01886672,0.0001118,2]
[327526276,1716161745336,8200.0,0.0001118,2]
[327526277,1716161826882,1186.52,0.00024329,30]
[327526280,1716162099348,349.37,9.892e-05,2]
[327526281,1716162303322,1087.64,0.00024329,30]
[327526296,1716162631357,-1248.26268845,0.0001114,2]
[327526298,1716162631368,-207.39135552,0.00011141,2]
[327526300,1716162631377,-516.09860247,0.00011142,2]
[327526302,1716162631386,-150.0,0.00011147,2]
[327526303,1716162631396,-150.0,0.00011151,2]
[327526304,1716162631405,-316.55835412,0.0001117,2]
[327526305,1716162631415,-316.55835412,0.0001117,2]
[327526306,1716162631425,-316.55835412,0.0001117,2]
[327526307,1716162631434,-277.59606046,0.0001117,2]
[327526308,1716162631459,-38.96229366,0.0001117,2]
[327526309,1716162631468,-316.55835412,0.0001117,2]
[327526310,1716162631479,-316.55835412,0.0001117,2]
[327526311,1716162631489,-316.55835412,0.0001117,2]
[327526312,1716162631500,-316.55835412,0.0001117,2]
[327526313,1716162631509,-316.55835412,0.0001117,2]
[327526314,1716162631519,-316.55835412,0.0001117,2]
[327526315,1716162631529,-316.55835412,0.0001117,2]
[327526316,1716162631538,-316.55835412,0.0001117,2]
[327526317,1716162631549,-316.55835412,0.0001117,2]
[327526318,1716162631558,-316.55835412,0.0001117,2]
[327526319,1716162631568,-316.55835412,0.0001117,2]
[327526320,1716162631578,-316.55835412,0.0001117,2]
[327526321,1716162631588,-316.55835412,0.0001117,2]
[327526322,1716162631597,-316.55835412,0.0001117,2]
[327526323,1716162631608,-316.55835412,0.0001117,2]
[327526324,1716162631618,-2362.29532977,0.00011177,2]
[327526325,1716162631627,-1391.45711132,0.00011178,2]
[327526326,1716162631637,-3000.95774853,0.00011179,2]
[327526327,1716162631648,-2011.74,0.00011179,2]
[327526328,1716162631663,-363.2425254,0.00011179,2]
[327526329,1716162631674,-1836.77399846,0.00011179,2]
[327526330,1716162631686,-2335.02407938,0.00011179,2]
[327526331,1716162631696,-1735.0204985,0.0001118,2]
[327526332,1716162631711,-2011.148602,0.0001118,2]
[327526333,1716162631722,-342.93404351,0.0001118,2]
[327526334,1716162631771,-289.3455407,0.0001118,2]
[327526335,1716162631787,-2248.99689501,0.0001118,2]
[327526336,1716162631799,-1047.42676983,0.0001118,2]
[327526337,1716162631814,-5367.41776027,0.0001118,2]
[327526338,1716162631825,-1652.31001679,0.0001118,2]
[327526340,1716162631839,-2514.71600352,0.0001118,2]
[327526341,1716162631851,-22517.22966806,0.0001118,2]
[327526342,1716162631871,-449.84035098,0.0001118,2]
[327526345,1716162637422,-548.09566506,0.0001118,2]
[327526346,1716162637433,-46317.2678117,0.0001118,2]
[327526349,1716162639488,-2490.9956786,0.0001118,2]
[327526350,1716162639508,-3083.2139633,0.0001118,2]
[327526351,1716162639525,-663.5250013,0.0001118,2]
[327526352,1716162639544,-35908.05607968,0.0001118,2]
[327526353,1716162639711,-47420.05488202,0.0001118,2]
[327526354,1716162639727,-153.22,0.00011522,2]
[327526355,1716162639742,-1000.0,0.00011529,2]
[327526356,1716162639757,-250.0,0.00011539,2]
[327526357,1716162639772,-316.55835412,0.00011553,2]
[327526358,1716162639787,-1658.64,0.00011563,2]
[327526359,1716162639803,-165.73,0.00011663,2]
[327526360,1716162639818,-159.58,0.00011902,2]
[327526361,1716162639833,-186.27,0.0001195,2]
[327526362,1716162639848,-349.37,0.00012155,2]
[327526363,1716162639863,-2500.0,0.00012186,2]
[327526364,1716162639877,-210.0,0.00012261,2]
[327526365,1716162639892,-316.55835412,0.00012495,2]
[327526366,1716162639907,-4428.4911148,0.00012505,2]
[327526367,1716162639921,-159.58,0.00012523,2]
[327526369,1716162639937,-1618.3668,0.00012687,2]
[327526371,1716162639951,-499.99,0.00012722,2]
[327526372,1716162639965,-170.86,0.00012777,2]